[Event "Live Chess"]
[Site "Chess.com"]
[Date "2024.06.02"]
[Round "-"]
[White "booktrunk"]
[Black "McFim"]
[Result "0-1"]
[WhiteElo "1513"]
[BlackElo "1662"]
[TimeControl "300"]
[EndTime "22:06:01 PDT"]
[Termination "McFim won by resignation"]

1. d4 {[%clk 0:04:55.1]} 1... d5 {[%clk 0:04:58.5]} 2. Nc3 {[%clk 0:04:55]} 2...
Nf6 {[%clk 0:04:56.9]} 3. Bf4 {[%clk 0:04:54.3]} 3... c6 {[%clk 0:04:55.3]} 4.
h4 {[%clk 0:04:49.4]} 4... Bf5 {[%clk 0:04:51.9]} 5. e3 {[%clk 0:04:48]} 5... e6
{[%clk 0:04:50]} 6. Bd3 {[%clk 0:04:46.5]} 6... Bxd3 {[%clk 0:04:42.2]} 7. cxd3
{[%clk 0:04:45.5]} 7... Bd6 {[%clk 0:04:41.5]} 8. Qf3 {[%clk 0:04:43.3]} 8...
Bxf4 {[%clk 0:04:35.8]} 9. Qxf4 {[%clk 0:04:42.2]} 9... Nbd7 {[%clk 0:04:34.5]}
10. g4 {[%clk 0:04:40.3]} 10... Qb8 {[%clk 0:04:29.8]} 11. Qf3 {[%clk 0:04:37]}
11... g6 {[%clk 0:04:22.3]} 12. Nh3 {[%clk 0:04:31.5]} 12... Qd6 {[%clk
0:04:14.3]} 13. Ng5 {[%clk 0:04:27.4]} 13... Qe7 {[%clk 0:04:12.5]} 14. O-O-O
{[%clk 0:04:16.3]} 14... O-O-O {[%clk 0:04:08.3]} 15. e4 {[%clk 0:04:14.6]}
15... h6 {[%clk 0:04:05]} 16. Nh3 {[%clk 0:04:08.6]} 16... h5 {[%clk 0:03:57.2]}
17. g5 {[%clk 0:04:06.4]} 17... Ng4 {[%clk 0:03:55.7]} 18. Nf4 {[%clk
0:04:02.8]} 18... f6 {[%clk 0:03:31.8]} 19. Nxg6 {[%clk 0:04:00.4]} 19... Qg7
{[%clk 0:03:29.5]} 20. Nxh8 {[%clk 0:03:59.1]} 20... Rxh8 {[%clk 0:03:27]} 21.
gxf6 {[%clk 0:03:56.8]} 21... Ndxf6 {[%clk 0:03:20.8]} 22. e5 {[%clk 0:03:55.2]}
22... Qh6+ {[%clk 0:03:17.6]} 23. Kc2 {[%clk 0:03:49.7]} 23... Nd7 {[%clk
0:03:16.7]} 24. Rhg1 {[%clk 0:03:39.7]} 24... Rf8 {[%clk 0:03:14.1]} 25. Qe2
{[%clk 0:03:35.8]} 25... Rxf2 {[%clk 0:03:11.5]} 26. Rd2 {[%clk 0:03:26.3]}
26... Rxe2 {[%clk 0:03:08.2]} 27. Rxe2 {[%clk 0:03:24.7]} 27... a6 {[%clk
0:03:03.5]} 28. Nd1 {[%clk 0:03:23.2]} 28... c5 {[%clk 0:03:01.8]} 29. dxc5
{[%clk 0:03:21.2]} 29... Nxc5 {[%clk 0:02:57.9]} 30. Nf2 {[%clk 0:03:20]} 30...
Qg6 {[%clk 0:02:30]} 31. Nxg4 {[%clk 0:03:15.5]} 31... Qxd3+ {[%clk 0:02:26.2]}
0-1

[Event "Live Chess"]
[Site "Chess.com"]
[Date "2024.06.02"]
[Round "-"]
[White "juniortay"]
[Black "Dhaydon19"]
[Result "0-1"]
[WhiteElo "2430"]
[BlackElo "2677"]
[TimeControl "300"]
[EndTime "22:06:07 PDT"]
[Termination "Dhaydon19 won by checkmate"]

1. e4 {[%clk 0:04:58.4]} 1... c6 {[%clk 0:04:58.9]} 2. Nf3 {[%clk 0:04:57.8]}
2... d5 {[%clk 0:04:58.6]} 3. exd5 {[%clk 0:04:57.6]} 3... cxd5 {[%clk 0:04:58]}
4. Ne5 {[%clk 0:04:57.3]} 4... Nc6 {[%clk 0:04:57.5]} 5. d4 {[%clk 0:04:56.6]}
5... Bd7 {[%clk 0:04:57]} 6. c3 {[%clk 0:04:55.2]} 6... Nf6 {[%clk 0:04:56.3]}
7. Bd3 {[%clk 0:04:53.8]} 7... e6 {[%clk 0:04:54.2]} 8. O-O {[%clk 0:04:52.2]}
8... Bd6 {[%clk 0:04:53.1]} 9. f4 {[%clk 0:04:50.4]} 9... Qc7 {[%clk 0:04:51.9]}
10. Nd2 {[%clk 0:04:49.4]} 10... Ne7 {[%clk 0:04:48.9]} 11. Qe2 {[%clk
0:04:44.3]} 11... a6 {[%clk 0:04:45.3]} 12. a4 {[%clk 0:04:41.8]} 12... h5
{[%clk 0:04:40.9]} 13. Ndf3 {[%clk 0:04:39.6]} 13... Rf8 {[%clk 0:04:27.9]} 14.
Nxd7 {[%clk 0:04:36]} 14... Nxd7 {[%clk 0:04:23.3]} 15. Ne5 {[%clk 0:04:35.9]}
15... g6 {[%clk 0:04:22.1]} 16. Bd2 {[%clk 0:04:29.8]} 16... O-O-O {[%clk
0:04:19.6]} 17. b4 {[%clk 0:04:27.8]} 17... Kb8 {[%clk 0:04:18.1]} 18. a5 {[%clk
0:04:22.3]} 18... Nf5 {[%clk 0:04:09.6]} 19. b5 {[%clk 0:04:20.8]} 19... axb5
{[%clk 0:04:07.6]} 20. Bxb5 {[%clk 0:04:19.5]} 20... Nxe5 {[%clk 0:04:06.6]} 21.
fxe5 {[%clk 0:04:18.2]} 21... Be7 {[%clk 0:04:06]} 22. Rfb1 {[%clk 0:04:10.1]}
22... Ka7 {[%clk 0:04:02.8]} 23. Bd3 {[%clk 0:04:05.6]} 23... Rb8 {[%clk
0:03:54.2]} 24. Rb5 {[%clk 0:04:02.6]} 24... f6 {[%clk 0:03:46.8]} 25. Rab1
{[%clk 0:03:50]} 25... fxe5 {[%clk 0:03:44.1]} 26. dxe5 {[%clk 0:03:49.9]} 26...
Bc5+ {[%clk 0:03:40.1]} 27. Kh1 {[%clk 0:03:45.3]} 27... Ka8 {[%clk 0:03:36.9]}
28. c4 {[%clk 0:03:30.6]} 28... Nd4 {[%clk 0:03:33.2]} 29. Qe1 {[%clk
0:03:25.8]} 29... Nxb5 {[%clk 0:03:30.7]} 30. Rxb5 {[%clk 0:03:25.7]} 30... dxc4
{[%clk 0:03:27.6]} 31. Be4 {[%clk 0:03:24.8]} 31... Rfd8 {[%clk 0:03:02.3]} 32.
a6 {[%clk 0:03:19.1]} 32... Rd5 {[%clk 0:02:59.6]} 33. Bxd5 {[%clk 0:03:14.2]}
33... exd5 {[%clk 0:02:58.1]} 34. a7 {[%clk 0:01:09.4]} 34... Re8 {[%clk
0:02:52.6]} 35. Bf4 {[%clk 0:01:03.9]} 35... g5 {[%clk 0:02:46]} 36. e6 {[%clk
0:00:15.4]} 36... gxf4 {[%clk 0:02:40.7]} 37. h3 {[%clk 0:00:08.9]} 37... f3
{[%clk 0:02:38.6]} 38. gxf3 {[%clk 0:00:07.6]} 38... Qc6 {[%clk 0:02:35.6]} 39.
Qb1 {[%clk 0:00:03.2]} 39... Qxe6 {[%clk 0:02:31.8]} 40. Rxb7 {[%clk 0:00:00.7]}
40... Qxh3# {[%clk 0:02:30.8]} 0-1

[Event "Live Chess"]
[Site "Chess.com"]
[Date "2024.06.02"]
[Round "-"]
[White "RockTroll"]
[Black "Tushinskiy"]
[Result "0-1"]
[WhiteElo "2173"]
[BlackElo "2275"]
[TimeControl "300"]
[EndTime "22:06:55 PDT"]
[Termination "Tushinskiy won by resignation"]

1. e4 {[%clk 0:04:55.6]} 1... e5 {[%clk 0:04:58.7]} 2. Nf3 {[%clk 0:04:54.5]}
2... d6 {[%clk 0:04:58.6]} 3. d4 {[%clk 0:04:49.7]} 3... Bg4 {[%clk 0:04:57.3]}
4. dxe5 {[%clk 0:04:48]} 4... Nd7 {[%clk 0:04:56.6]} 5. exd6 {[%clk 0:04:40.6]}
5... Bxd6 {[%clk 0:04:56.5]} 6. Be2 {[%clk 0:04:28.1]} 6... Qe7 {[%clk
0:04:55.1]} 7. Nbd2 {[%clk 0:04:26.2]} 7... Ngf6 {[%clk 0:04:53.2]} 8. O-O
{[%clk 0:04:24.5]} 8... O-O-O {[%clk 0:04:52.6]} 9. Re1 {[%clk 0:04:16.8]} 9...
h5 {[%clk 0:04:50.1]} 10. c3 {[%clk 0:04:12.4]} 10... Ne5 {[%clk 0:04:46.8]} 11.
Nxe5 {[%clk 0:04:10.9]} 11... Qxe5 {[%clk 0:04:46.7]} 12. f4 {[%clk 0:03:41.6]}
12... Qxf4 {[%clk 0:04:42.5]} 13. Nf3 {[%clk 0:03:40.8]} 13... Qxe4 {[%clk
0:04:39.6]} 14. Bg5 {[%clk 0:03:12]} 14... Bc5+ {[%clk 0:04:34.6]} 15. Kh1
{[%clk 0:03:09.8]} 15... Rxd1 {[%clk 0:04:34.5]} 16. Raxd1 {[%clk 0:03:07.8]}
0-1

[Event "Live Chess"]
[Site "Chess.com"]
[Date "2024.06.02"]
[Round "-"]
[White "booktrunk"]
[Black "rekosheten"]
[Result "0-1"]
[WhiteElo "1513"]
[BlackElo "2473"]
[TimeControl "300"]
[EndTime "22:07:53 PDT"]
[Termination "rekosheten won by checkmate"]

1. d4 {[%clk 0:04:56.5]} 1... Nf6 {[%clk 0:04:55.4]} 2. Nc3 {[%clk 0:04:52.9]}
2... d5 {[%clk 0:04:48.9]} 3. Bf4 {[%clk 0:04:51]} 3... c5 {[%clk 0:04:45.3]} 4.
dxc5 {[%clk 0:04:48.9]} 4... d4 {[%clk 0:04:41.2]} 5. Nb1 {[%clk 0:04:41.7]}
5... Nc6 {[%clk 0:04:38.4]} 6. a3 {[%clk 0:04:38.9]} 6... e5 {[%clk 0:04:36]} 7.
Bg5 {[%clk 0:04:36.3]} 7... Bxc5 {[%clk 0:04:34.1]} 8. Bd2 {[%clk 0:04:28.2]}
8... O-O {[%clk 0:04:29.5]} 9. b4 {[%clk 0:04:26.9]} 9... Bb6 {[%clk 0:04:27.5]}
10. Nf3 {[%clk 0:04:25.9]} 10... e4 {[%clk 0:04:26]} 11. Ng5 {[%clk 0:04:23.5]}
11... h6 {[%clk 0:04:15.1]} 12. Nh3 {[%clk 0:04:19.8]} 12... Bxh3 {[%clk
0:04:11.9]} 13. gxh3 {[%clk 0:04:17.8]} 13... e3 {[%clk 0:04:11.8]} 14. fxe3
{[%clk 0:04:15.5]} 14... Ne4 {[%clk 0:04:09.6]} 15. exd4 {[%clk 0:04:10.7]}
15... Qh4# {[%clk 0:04:07.4]} 0-1

[Event "Live Chess"]
[Site "Chess.com"]
[Date "2024.06.02"]
[Round "-"]
[White "edward33_24h"]
[Black "KeithArkell"]
[Result "0-1"]
[WhiteElo "624"]
[BlackElo "2428"]
[TimeControl "300"]
[EndTime "22:08:08 PDT"]
[Termination "KeithArkell won by resignation"]

1. d4 {[%clk 0:04:54.5]} 1... c6 {[%clk 0:04:59.2]} 2. Nf3 {[%clk 0:04:50.5]}
2... d5 {[%clk 0:04:58.2]} 3. Bf4 {[%clk 0:04:44.1]} 3... Bg4 {[%clk 0:04:57.4]}
4. e3 {[%clk 0:04:40.8]} 4... e6 {[%clk 0:04:55.9]} 5. Nbd2 {[%clk 0:04:36.9]}
5... Bd6 {[%clk 0:04:54.8]} 6. Bg5 {[%clk 0:04:32.8]} 6... Qxg5 {[%clk
0:04:50.7]} 7. Nxg5 {[%clk 0:04:29.4]} 7... Bxd1 {[%clk 0:04:49.9]} 8. Rxd1
{[%clk 0:04:25.7]} 8... Nf6 {[%clk 0:04:49.8]} 9. Ngf3 {[%clk 0:04:20.1]} 9...
Nbd7 {[%clk 0:04:47.8]} 10. c4 {[%clk 0:04:15.9]} 10... a5 {[%clk 0:04:44.7]}
11. c5 {[%clk 0:04:13.6]} 11... Bc7 {[%clk 0:04:44.1]} 12. Ne5 {[%clk 0:04:10]}
12... Nxe5 {[%clk 0:04:42.7]} 13. dxe5 {[%clk 0:04:07.5]} 13... Bxe5 {[%clk
0:04:41.9]} 14. Nf3 {[%clk 0:04:05.8]} 14... Bxb2 {[%clk 0:04:38.2]} 15. Be2
{[%clk 0:04:02.9]} 15... Bc3+ {[%clk 0:04:35.7]} 16. Nd2 {[%clk 0:03:58.6]}
16... Ne4 {[%clk 0:04:33.8]} 17. O-O {[%clk 0:03:56.1]} 17... Bxd2 {[%clk
0:04:33]} 18. Rb1 {[%clk 0:03:50.6]} 18... Bb4 {[%clk 0:04:29.7]} 19. a3 {[%clk
0:03:46.3]} 19... Nc3 {[%clk 0:04:26.3]} 20. Rb2 {[%clk 0:03:39.2]} 20... Nxe2+
{[%clk 0:04:24.3]} 21. Rxe2 {[%clk 0:03:36.4]} 21... Bxa3 {[%clk 0:04:23.8]} 22.
Ra2 {[%clk 0:03:33.8]} 22... Bxc5 {[%clk 0:04:22.1]} 23. Rc1 {[%clk 0:03:29.3]}
23... Bb4 {[%clk 0:04:20.9]} 24. Rac2 {[%clk 0:03:22.5]} 24... Kd7 {[%clk
0:04:19.7]} 25. e4 {[%clk 0:03:19.3]} 25... Rhc8 {[%clk 0:04:18.2]} 26. exd5
{[%clk 0:03:17]} 26... cxd5 {[%clk 0:04:17.6]} 27. Rxc8 {[%clk 0:03:12.7]} 27...
Rxc8 {[%clk 0:04:17.5]} 28. Rb1 {[%clk 0:03:09.2]} 28... Rc2 {[%clk 0:04:15.3]}
0-1

[Event "Live Chess"]
[Site "Chess.com"]
[Date "2024.06.02"]
[Round "-"]
[White "Dhaydon19"]
[Black "Duke_of_Bebington"]
[Result "1-0"]
[WhiteElo "2677"]
[BlackElo "1652"]
[TimeControl "300"]
[EndTime "22:08:56 PDT"]
[Termination "Dhaydon19 won by resignation"]

1. Nf3 {[%clk 0:04:57.8]} 1... d5 {[%clk 0:04:58.2]} 2. e3 {[%clk 0:04:57.2]}
2... Nf6 {[%clk 0:04:53.5]} 3. b3 {[%clk 0:04:56.7]} 3... Nc6 {[%clk 0:04:45.8]}
4. Bb2 {[%clk 0:04:55.4]} 4... e6 {[%clk 0:04:45.1]} 5. Be2 {[%clk 0:04:52.5]}
5... Bd6 {[%clk 0:04:44.6]} 6. O-O {[%clk 0:04:50.2]} 6... O-O {[%clk
0:04:44.1]} 7. c4 {[%clk 0:04:49.2]} 7... b6 {[%clk 0:04:38.3]} 8. Qc1 {[%clk
0:04:45.3]} 8... Ba6 {[%clk 0:04:27.4]} 9. Re1 {[%clk 0:04:42]} 9... dxc4 {[%clk
0:04:25.1]} 10. Bxc4 {[%clk 0:04:39.5]} 10... Bxc4 {[%clk 0:04:22.1]} 11. Qxc4
{[%clk 0:04:38.5]} 11... Qd7 {[%clk 0:04:12.5]} 12. Nc3 {[%clk 0:04:35.3]} 12...
Ne5 {[%clk 0:04:07.4]} 13. Qe2 {[%clk 0:04:32]} 13... Rfd8 {[%clk 0:04:00.3]}
14. d4 {[%clk 0:04:26]} 14... Nxf3+ {[%clk 0:03:58.4]} 15. Qxf3 {[%clk
0:04:24.8]} 15... Nd5 {[%clk 0:03:56.5]} 16. Ne4 {[%clk 0:04:19.6]} 16... Bb4
{[%clk 0:03:52.9]} 17. Rec1 {[%clk 0:04:17.9]} 17... Qe7 {[%clk 0:03:47.4]} 18.
a3 {[%clk 0:04:15.6]} 18... Bd6 {[%clk 0:03:45.1]} 19. b4 {[%clk 0:04:14.8]}
19... Qh4 {[%clk 0:03:36.1]} 20. Nxd6 {[%clk 0:04:09]} 20... cxd6 {[%clk
0:03:32.9]} 21. e4 {[%clk 0:04:07.9]} 21... Nf4 {[%clk 0:03:26.7]} 22. g3 {[%clk
0:04:06.1]} 22... Qg5 {[%clk 0:03:23.9]} 23. Qxf4 {[%clk 0:04:04.3]} 23... Qxf4
{[%clk 0:03:22]} 24. gxf4 {[%clk 0:04:03.2]} 1-0

[Event "Live Chess"]
[Site "Chess.com"]
[Date "2024.06.02"]
[Round "-"]
[White "IgorSchukin"]
[Black "Cruiseylee78"]
[Result "1-0"]
[WhiteElo "1784"]
[BlackElo "1687"]
[TimeControl "300"]
[EndTime "22:10:24 PDT"]
[Termination "IgorSchukin won by resignation"]

1. e4 {[%clk 0:04:58.1]} 1... d6 {[%clk 0:04:57.6]} 2. Nf3 {[%clk 0:04:56.6]}
2... Nd7 {[%clk 0:04:55.5]} 3. Nc3 {[%clk 0:04:55.6]} 3... e5 {[%clk 0:04:53.4]}
4. Bc4 {[%clk 0:04:53.1]} 4... c6 {[%clk 0:04:51.3]} 5. O-O {[%clk 0:04:50.6]}
5... h6 {[%clk 0:04:49.6]} 6. d4 {[%clk 0:04:46.4]} 6... Be7 {[%clk 0:04:47.8]}
7. dxe5 {[%clk 0:04:44.7]} 7... dxe5 {[%clk 0:04:47.7]} 8. Be3 {[%clk 0:04:42]}
8... Ngf6 {[%clk 0:04:45.8]} 9. Qd2 {[%clk 0:04:39.3]} 9... Qc7 {[%clk
0:04:43.2]} 10. Rad1 {[%clk 0:04:37]} 10... g5 {[%clk 0:04:40.4]} 11. a3 {[%clk
0:04:33.4]} 11... Nf8 {[%clk 0:04:35.6]} 12. Bxg5 {[%clk 0:04:24.3]} 12... hxg5
{[%clk 0:04:33.7]} 13. Nxg5 {[%clk 0:04:22.8]} 13... Bc5 {[%clk 0:04:27.2]} 14.
Bxf7+ {[%clk 0:04:17.5]} 14... Ke7 {[%clk 0:04:23.2]} 15. b4 {[%clk 0:04:08.2]}
15... Bb6 {[%clk 0:04:11.4]} 16. Bb3 {[%clk 0:04:03.1]} 16... Bg4 {[%clk
0:04:05.2]} 17. Rde1 {[%clk 0:03:50.6]} 17... Rd8 {[%clk 0:04:02.9]} 18. Qc1
{[%clk 0:03:41.2]} 18... Rh5 {[%clk 0:03:41.5]} 19. Nf7 {[%clk 0:03:29.1]} 19...
Rd4 {[%clk 0:03:28.6]} 20. Re3 {[%clk 0:03:18.6]} 20... Rd7 {[%clk 0:03:13.5]}
21. Rg3 {[%clk 0:03:14.1]} 21... Bd4 {[%clk 0:03:06]} 22. Na4 {[%clk 0:02:58.5]}
22... Be2 {[%clk 0:02:59.6]} 23. Rg7 {[%clk 0:02:47.4]} 23... Ke8 {[%clk
0:02:50.5]} 24. Re1 {[%clk 0:02:38.9]} 24... Rxf7 {[%clk 0:02:43.3]} 25. Rxf7
{[%clk 0:02:36.2]} 25... Nxe4 {[%clk 0:02:14.1]} 26. Rxe2 {[%clk 0:02:31]} 26...
Qd6 {[%clk 0:02:06.6]} 27. Rxe4 {[%clk 0:02:25.6]} 27... Bxf2+ {[%clk
0:02:00.4]} 28. Rxf2 {[%clk 0:02:22.9]} 28... Qg6 {[%clk 0:01:48.2]} 29. Bf7+
{[%clk 0:02:20.5]} 1-0

[Event "Live Chess"]
[Site "Chess.com"]
[Date "2024.06.02"]
[Round "-"]
[White "Dhaydon19"]
[Black "elephantgerrald"]
[Result "1-0"]
[WhiteElo "2677"]
[BlackElo "814"]
[TimeControl "300"]
[EndTime "22:12:34 PDT"]
[Termination "Dhaydon19 won by checkmate"]

1. d4 {[%clk 0:04:58.2]} 1... d5 {[%clk 0:04:59.1]} 2. Nf3 {[%clk 0:04:57.8]}
2... Nc6 {[%clk 0:04:58.1]} 3. g3 {[%clk 0:04:57.3]} 3... Bg4 {[%clk 0:04:56.9]}
4. Bg2 {[%clk 0:04:55.9]} 4... Bxf3 {[%clk 0:04:55.2]} 5. Bxf3 {[%clk
0:04:54.6]} 5... Nf6 {[%clk 0:04:54.8]} 6. c4 {[%clk 0:04:53.8]} 6... e6 {[%clk
0:04:54.4]} 7. cxd5 {[%clk 0:04:51.3]} 7... exd5 {[%clk 0:04:53.6]} 8. Nc3
{[%clk 0:04:51]} 8... Bb4 {[%clk 0:04:49.9]} 9. O-O {[%clk 0:04:49.7]} 9... O-O
{[%clk 0:04:48.5]} 10. Bg5 {[%clk 0:04:47.9]} 10... Bxc3 {[%clk 0:04:45.3]} 11.
bxc3 {[%clk 0:04:46.4]} 11... h6 {[%clk 0:04:41]} 12. Bxf6 {[%clk 0:04:45.4]}
12... Qxf6 {[%clk 0:04:39.6]} 13. Bxd5 {[%clk 0:04:43.6]} 13... Rfd8 {[%clk
0:04:32.9]} 14. Bf3 {[%clk 0:04:42]} 14... a5 {[%clk 0:04:25.4]} 15. Qa4 {[%clk
0:04:40.3]} 15... Ra6 {[%clk 0:04:20.6]} 16. Rab1 {[%clk 0:04:37.6]} 16... Rb8
{[%clk 0:04:15.9]} 17. Rb3 {[%clk 0:04:32.6]} 17... b6 {[%clk 0:04:06.6]} 18.
Bxc6 {[%clk 0:04:29.8]} 18... Qd6 {[%clk 0:03:51.7]} 19. Bb5 {[%clk 0:04:27.9]}
19... Ra7 {[%clk 0:03:46.5]} 20. e3 {[%clk 0:04:25.3]} 20... Rc8 {[%clk
0:03:41.2]} 21. Bd3 {[%clk 0:04:23.1]} 21... c5 {[%clk 0:03:36.1]} 22. Rfb1
{[%clk 0:04:20.6]} 22... cxd4 {[%clk 0:03:31.7]} 23. cxd4 {[%clk 0:04:18]} 23...
Qf6 {[%clk 0:03:19.5]} 24. Rc3 {[%clk 0:04:14.6]} 24... Raa8 {[%clk 0:03:05.3]}
25. Rbc1 {[%clk 0:04:11.5]} 25... g6 {[%clk 0:03:02]} 26. Rxc8+ {[%clk
0:04:09.1]} 26... Rxc8 {[%clk 0:03:00.4]} 27. Rxc8+ {[%clk 0:04:08.8]} 27... Kg7
{[%clk 0:02:58.2]} 28. Qe8 {[%clk 0:04:08.5]} 28... Kh7 {[%clk 0:02:49.2]} 29.
Qg8# {[%clk 0:04:05.7]} 1-0

[Event "Live Chess"]
[Site "Chess.com"]
[Date "2024.06.02"]
[Round "-"]
[White "Duke_of_Bebington"]
[Black "edward33_24h"]
[Result "1-0"]
[WhiteElo "1652"]
[BlackElo "624"]
[TimeControl "300"]
[EndTime "22:14:37 PDT"]
[Termination "Duke_of_Bebington won by resignation"]

1. e4 {[%clk 0:04:55.4]} 1... e5 {[%clk 0:04:55.9]} 2. Nf3 {[%clk 0:04:53.2]}
2... Nc6 {[%clk 0:04:50.7]} 3. Bc4 {[%clk 0:04:51.3]} 3... Bc5 {[%clk
0:04:47.4]} 4. b4 {[%clk 0:04:49.1]} 4... Bxb4 {[%clk 0:04:44]} 5. c3 {[%clk
0:04:47.7]} 5... Ba5 {[%clk 0:04:42]} 6. d4 {[%clk 0:04:32.6]} 6... exd4 {[%clk
0:04:37.4]} 7. O-O {[%clk 0:04:31]} 7... Bxc3 {[%clk 0:04:32.9]} 8. Nxc3 {[%clk
0:04:29.2]} 8... dxc3 {[%clk 0:04:29.9]} 9. Qb3 {[%clk 0:04:26.3]} 9... d5
{[%clk 0:04:26.5]} 10. Bxd5 {[%clk 0:04:20.8]} 10... Be6 {[%clk 0:04:24.5]} 11.
Bxe6 {[%clk 0:04:18.9]} 11... fxe6 {[%clk 0:04:20.3]} 12. Qxe6+ {[%clk
0:04:15.6]} 12... Qe7 {[%clk 0:04:17.3]} 13. Qxe7+ {[%clk 0:04:05.2]} 13...
Ngxe7 {[%clk 0:04:13.7]} 14. Ba3 {[%clk 0:04:00]} 14... Ng6 {[%clk 0:04:07.3]}
15. Rac1 {[%clk 0:03:56.2]} 15... O-O-O {[%clk 0:04:05.1]} 16. Rxc3 {[%clk
0:03:53.4]} 16... Nce5 {[%clk 0:03:56.1]} 17. Nxe5 {[%clk 0:03:41.2]} 17... Nxe5
{[%clk 0:03:50.6]} 18. Rfc1 {[%clk 0:03:34.4]} 18... Rd7 {[%clk 0:03:46.6]} 19.
f4 {[%clk 0:03:30.7]} 19... Nd3 {[%clk 0:03:36.3]} 20. Rf1 {[%clk 0:03:09.7]}
20... Nxf4 {[%clk 0:03:26.9]} 21. Rxf4 {[%clk 0:03:06.7]} 21... Rd1+ {[%clk
0:03:24.4]} 22. Kf2 {[%clk 0:03:02.9]} 22... Rd2+ {[%clk 0:03:20.8]} 23. Kg3
{[%clk 0:03:01.5]} 23... h5 {[%clk 0:03:13.8]} 24. Rf7 {[%clk 0:02:52.7]} 24...
h4+ {[%clk 0:03:10.9]} 25. Kh3 {[%clk 0:02:46.7]} 25... Rd3+ {[%clk 0:03:06.1]}
26. Rxd3 {[%clk 0:02:44.5]} 1-0

[Event "Live Chess"]
[Site "Chess.com"]
[Date "2024.06.02"]
[Round "-"]
[White "Winterowl"]
[Black "Dhaydon19"]
[Result "0-1"]
[WhiteElo "1561"]
[BlackElo "2677"]
[TimeControl "300"]
[EndTime "22:14:41 PDT"]
[Termination "Dhaydon19 won by resignation"]

1. e4 {[%clk 0:04:57.7]} 1... c6 {[%clk 0:04:58]} 2. d4 {[%clk 0:04:55.7]} 2...
d5 {[%clk 0:04:57.7]} 3. e5 {[%clk 0:04:54.6]} 3... c5 {[%clk 0:04:57]} 4. c3
{[%clk 0:04:53.3]} 4... cxd4 {[%clk 0:04:56.7]} 5. cxd4 {[%clk 0:04:52]} 5...
Nc6 {[%clk 0:04:56.4]} 6. Nf3 {[%clk 0:04:50.2]} 6... Bg4 {[%clk 0:04:54.3]} 7.
Be2 {[%clk 0:04:48.5]} 7... e6 {[%clk 0:04:48.4]} 8. O-O {[%clk 0:04:47.3]} 8...
Nge7 {[%clk 0:04:46.1]} 9. a3 {[%clk 0:04:46.5]} 9... Nf5 {[%clk 0:04:44.8]} 10.
Be3 {[%clk 0:04:43.3]} 10... Nxe3 {[%clk 0:04:43.1]} 11. fxe3 {[%clk 0:04:42.1]}
11... Be7 {[%clk 0:04:42.4]} 12. Qe1 {[%clk 0:04:39.7]} 12... O-O {[%clk
0:04:39.1]} 13. Qg3 {[%clk 0:04:38.6]} 13... Bh5 {[%clk 0:04:36.6]} 14. Nc3
{[%clk 0:04:35.7]} 14... Bg6 {[%clk 0:04:32.9]} 15. Rad1 {[%clk 0:04:33.7]}
15... Rc8 {[%clk 0:04:30.6]} 16. e4 {[%clk 0:04:31.2]} 16... dxe4 {[%clk
0:04:28.6]} 17. Nxe4 {[%clk 0:04:29.7]} 17... Bxe4 {[%clk 0:04:26.8]} 0-1

[Event "Live Chess"]
[Site "Chess.com"]
[Date "2024.06.02"]
[Round "-"]
[White "Cruiseylee78"]
[Black "booktrunk"]
[Result "0-1"]
[WhiteElo "1675"]
[BlackElo "1525"]
[TimeControl "300"]
[EndTime "22:15:07 PDT"]
[Termination "booktrunk won by resignation"]

1. d4 {[%clk 0:04:51.4]} 1... e6 {[%clk 0:04:56.6]} 2. Bf4 {[%clk 0:04:50.6]}
2... Nc6 {[%clk 0:04:46.3]} 3. e3 {[%clk 0:04:49.6]} 3... h6 {[%clk 0:04:40.1]}
4. Nf3 {[%clk 0:04:49.5]} 4... Bb4+ {[%clk 0:04:32.6]} 5. c3 {[%clk 0:04:48.3]}
5... Be7 {[%clk 0:04:30.7]} 6. Nbd2 {[%clk 0:04:47.2]} 6... g5 {[%clk
0:04:29.4]} 7. Bg3 {[%clk 0:04:45.4]} 7... Nf6 {[%clk 0:04:27.8]} 8. Bd3 {[%clk
0:04:43.9]} 8... Nh5 {[%clk 0:04:26.3]} 9. Qc2 {[%clk 0:04:42.4]} 9... Nxg3
{[%clk 0:04:24.5]} 10. hxg3 {[%clk 0:04:42.2]} 10... d5 {[%clk 0:04:20.8]} 11.
Ne5 {[%clk 0:04:35.5]} 11... Nxe5 {[%clk 0:04:18.8]} 12. dxe5 {[%clk 0:04:35.4]}
12... Bd7 {[%clk 0:04:15.1]} 13. O-O-O {[%clk 0:04:32.7]} 13... Bc6 {[%clk
0:04:12]} 14. Rhg1 {[%clk 0:04:18.6]} 14... Qd7 {[%clk 0:04:10.7]} 15. g4 {[%clk
0:04:16.4]} 15... Ba4 {[%clk 0:04:08.2]} 16. b3 {[%clk 0:04:14.3]} 16... Bb5
{[%clk 0:04:06.8]} 17. Bxb5 {[%clk 0:04:10.6]} 17... Qxb5 {[%clk 0:04:04.3]} 18.
f4 {[%clk 0:04:08.2]} 18... gxf4 {[%clk 0:04:02.1]} 19. exf4 {[%clk 0:04:08.1]}
19... a5 {[%clk 0:03:59.4]} 20. g5 {[%clk 0:04:06.8]} 20... hxg5 {[%clk
0:03:57.1]} 21. fxg5 {[%clk 0:04:05.8]} 21... Bxg5 {[%clk 0:03:55.8]} 22. Rh1
{[%clk 0:04:03.4]} 22... Rxh1 {[%clk 0:03:52.4]} 23. Rxh1 {[%clk 0:04:03.3]}
23... O-O-O {[%clk 0:03:49.1]} 24. Kb2 {[%clk 0:03:59]} 24... a4 {[%clk
0:03:46.4]} 25. Nf3 {[%clk 0:03:57.5]} 25... Be7 {[%clk 0:03:39.4]} 26. Rh7
{[%clk 0:03:55.5]} 26... Rf8 {[%clk 0:03:36]} 27. Nd4 {[%clk 0:03:51.2]} 27...
Qb6 {[%clk 0:03:28.6]} 28. g3 {[%clk 0:03:48]} 28... axb3 {[%clk 0:03:26.8]} 29.
axb3 {[%clk 0:03:46.8]} 29... Kd8 {[%clk 0:03:19.7]} 30. g4 {[%clk 0:03:44.9]}
30... f6 {[%clk 0:03:18.6]} 31. exf6 {[%clk 0:03:40.7]} 31... Bxf6 {[%clk
0:03:16.8]} 32. Rh6 {[%clk 0:03:34.3]} 32... Bxd4 {[%clk 0:03:14.7]} 33. cxd4
{[%clk 0:03:32.8]} 33... Qxd4+ {[%clk 0:03:13.7]} 34. Ka2 {[%clk 0:03:28.9]}
34... Rf2 {[%clk 0:03:04.1]} 35. Rh8+ {[%clk 0:03:24.5]} 35... Kd7 {[%clk
0:03:02.7]} 36. Rh7+ {[%clk 0:03:11]} 36... Kd6 {[%clk 0:03:00.3]} 37. Ka3
{[%clk 0:03:00.7]} 37... Rxc2 {[%clk 0:02:57.2]} 0-1